bitfinex/quotes_BTCUSD_20260125
["timestamp","ask_amount","ask_price","bid_price","bid_amount"]
[1769343196808,0.3033783,88653.0,88627.0,0.01128324]
[1769343196809,0.3033783,88653.0,88630.0,1.06604397]
[1769343196988,0.3033783,88653.0,88632.0,1.06604397]
[1769343197217,0.3033783,88653.0,88634.0,0.36438271]
[1769343197427,0.3033783,88653.0,88634.0,1.43042668]
[1769343198216,0.3033783,88653.0,88635.0,1.06604397]
[1769343199425,0.3033783,88653.0,88637.0,1.06604397]
[1769343200435,0.3033783,88651.0,88628.0,1.06604397]
[1769343200638,0.00014226,88654.0,88629.0,0.36438271]
[1769343200639,0.3033783,88649.0,88629.0,0.36438271]
[1769343201108,0.3033783,88649.0,88630.0,0.36438271]
[1769343201323,0.3033783,88649.0,88631.0,1.43042668]
[1769343201947,0.3033783,88649.0,88632.0,0.36438271]
[1769343203214,0.00014226,88654.0,88627.0,0.01128324]
[1769343203420,0.00014226,88654.0,88630.0,0.36438271]
[1769343203656,0.66932491,88653.0,88633.0,1.06604397]
[1769343203864,0.66932491,88653.0,88633.0,1.43042668]
[1769343205361,0.30352977,88652.0,88633.0,1.43027368]
[1769343206700,0.66947638,88652.0,88633.0,1.43027368]
[1769343208627,0.36594661,88652.0,88633.0,1.43027368]
[1769343208837,0.30352977,88651.0,88633.0,1.43027368]
[1769343210351,0.30352977,88651.0,88633.0,1.06589097]
[1769343210564,0.30352977,88651.0,88635.0,0.36438271]
[1769343210751,0.30352977,88651.0,88635.0,0.36421947]
[1769343211175,0.00014226,88654.0,88637.0,0.36438271]
[1769343211407,0.00014226,88654.0,88638.0,1.45011837]
[1769343211610,0.00014226,88654.0,88638.0,1.43042668]
[1769343212086,0.00014226,88654.0,88639.0,0.36438271]
[1769343212311,0.00014226,88654.0,88640.0,0.38616698]
[1769343212563,0.00014226,88654.0,88640.0,0.36405625]
[1769343212779,0.00014226,88654.0,88640.0,0.36356656]
[1769343212990,0.00014226,88654.0,88640.0,1.10943544]
[1769343213205,0.00014226,88654.0,88640.0,1.49664842]
[1769343213829,0.00014226,88654.0,88641.0,0.02256292]
[1769343214826,0.00014226,88654.0,88641.0,0.4097759]
[1769343214987,0.30367203,88654.0,88628.0,0.38721298]
[1769343215198,0.38662685,88653.0,88631.0,0.38721298]
[1769343215395,0.69015662,88652.0,88632.0,1.10943544]
[1769343215583,0.69015662,88652.0,88633.0,0.38721298]
[1769343215952,0.69015662,88652.0,88633.0,1.49664842]
[1769343216374,0.69015662,88652.0,88633.0,1.4964852]
[1769343218043,0.38662685,88652.0,88633.0,1.4964852]
[1769343218259,0.30352977,88651.0,88621.0,0.056444]
[1769343218543,0.30352977,88651.0,88627.0,0.04555489]
[1769343218688,0.30352977,88651.0,88632.0,1.10943544]
[1769343218928,0.30352977,88651.0,88627.0,0.04555489]
[1769343218929,0.30352977,88651.0,88633.0,1.49664842]
[1769343220090,0.69015662,88650.0,88633.0,1.49664842]
[1769343221046,0.69015662,88650.0,88634.0,0.01460717]
[1769343222398,0.69015662,88650.0,88633.0,1.49664842]
[1769343222399,0.00014226,88654.0,88633.0,0.38721298]
[1769343222686,0.30352977,88650.0,88633.0,0.38721298]
[1769343222887,0.01128057,88648.0,88619.0,0.0001751]
[1769343223086,0.23867691,88644.0,88623.0,1.10943544]
[1769343223296,0.23867691,88644.0,88625.0,1.10943544]
[1769343223447,0.23867691,88644.0,88626.0,0.38721298]
[1769343224409,0.23867691,88644.0,88626.0,1.49664842]
[1769343226929,0.23867691,88644.0,88626.0,1.49649552]
[1769343227571,0.23867691,88644.0,88627.0,0.38721298]
[1769343227772,0.38662685,88645.0,88628.0,1.10943544]
[1769343227972,0.38662685,88645.0,88629.0,1.10943544]
[1769343228173,0.23867691,88649.0,88629.0,1.49664842]
[1769343228387,0.23867691,88649.0,88632.0,1.10943544]
[1769343228591,0.00014226,88654.0,88634.0,1.49664842]
[1769343228822,0.11302915,88654.0,88636.0,0.38721298]
[1769343229034,0.00014226,88654.0,88637.0,0.02256394]
[1769343229965,0.00014226,88654.0,88638.0,1.10943544]
[1769343230170,0.00014226,88654.0,88640.0,0.38721298]
[1769343231173,0.00014226,88654.0,88641.0,1.49664842]
[1769343231414,0.00014226,88654.0,88641.0,1.49648523]
[1769343231650,0.00014226,88654.0,88636.0,1.10943544]
[1769343231847,0.00014226,88654.0,88621.0,0.011284]
[1769343231848,0.38662685,88653.0,88637.0,0.02256394]
[1769343232048,0.00014226,88654.0,88628.0,1.10943544]
[1769343232049,0.23883847,88650.0,88629.0,0.40977895]
[1769343232254,0.00014226,88654.0,88629.0,0.38721298]
[1769343232255,0.23883847,88648.0,88629.0,0.38721298]
[1769343232990,0.38662685,88647.0,88620.0,0.56061298]
[1769343233328,0.23883847,88642.0,88622.0,0.38721298]
[1769343233528,0.23883847,88642.0,88624.0,0.38721298]
[1769343233726,0.23883847,88642.0,88626.0,0.38688656]
[1769343234141,0.23883847,88642.0,88627.0,0.38721298]
[1769343234345,0.00014226,88654.0,88629.0,1.10943544]
[1769343234542,0.38662685,88653.0,88630.0,0.40764002]
[1769343234707,0.23883847,88650.0,88630.0,0.38721298]
[1769343234905,0.62546532,88650.0,88631.0,0.02037636]
[1769343236738,0.62546532,88650.0,88631.0,0.40758934]
[1769343236939,0.62546532,88650.0,88631.0,0.38721298]
[1769343237148,0.00014226,88654.0,88634.0,1.10943544]
[1769343237308,0.00014226,88654.0,88635.0,0.02256444]
[1769343237309,0.23898073,88654.0,88635.0,0.02256444]
[1769343237656,0.23883847,88653.0,88635.0,0.02256444]
[1769343238656,0.62546532,88653.0,88635.0,0.02256444]
[1769343239361,0.00014226,88654.0,88638.0,0.38721298]
[1769343239540,0.00014226,88654.0,88639.0,1.49664842]
[1769343239933,0.113267,88658.0,88626.0,0.01128337]
[1769343239934,0.17936604,88659.0,88641.0,1.10943544]
[1769343240132,0.17936604,88659.0,88642.0,1.49664842]
[1769343240569,0.17936604,88659.0,88643.0,0.38721298]
[1769343241182,0.17948534,88659.0,88643.0,0.38721298]
[1769343241986,0.17948534,88659.0,88643.0,0.38704981]
[1769343247451,0.56290914,88659.0,88643.0,0.38704981]
[1769343248695,0.07195714,88659.0,88643.0,0.38704981]
[1769343248874,0.008548,88658.0,88643.0,0.38704981]
[1769343255100,0.008548,88658.0,88644.0,0.02256215]
[1769343256248,0.85509621,88663.0,88644.0,0.36358052]
[1769343256419,0.85509621,88663.0,88645.0,0.38614242]
[1769343256660,0.85509621,88663.0,88645.0,0.36358052]
[1769343257744,0.85509621,88663.0,88646.0,0.02256164]
[1769343257956,0.85509621,88663.0,88646.0,0.38614216]
[1769343258155,0.85509621,88663.0,88646.0,0.36358052]
[1769343258380,0.85509621,88663.0,88647.0,0.02256139]
[1769343258768,0.0001778,88670.0,88650.0,0.36358052]
[1769343258969,0.0001778,88670.0,88652.0,1.10386271]
[1769343259302,0.0001778,88670.0,88653.0,0.19411746]
[1769343259515,0.0001778,88670.0,88653.0,0.13762977]
[1769343259669,0.0001778,88670.0,88653.0,0.0246544]
[1769343259870,0.0001778,88670.0,88652.0,1.10386271]
[1769343260087,0.39236809,88670.0,88652.0,1.10386271]
[1769343260401,0.05145794,88667.0,88650.0,0.36358052]
[1769343260624,0.44364823,88667.0,88650.0,0.36358052]
[1769343262155,0.44364823,88667.0,88650.0,0.36342795]
[1769343262488,0.44364823,88667.0,88650.0,0.36326481]
[1769343262900,0.0001778,88670.0,88651.0,1.10386271]
[1769343263087,0.44382603,88670.0,88651.0,1.10386271]
[1769343263709,0.05145794,88669.0,88651.0,1.10386271]
[1769343263910,0.44364823,88669.0,88651.0,1.10386271]
[1769343264818,0.05145794,88668.0,88651.0,1.10386271]
[1769343265173,0.0001778,88670.0,88652.0,0.01857296]
[1769343265410,0.0001778,88670.0,88641.0,0.00014226]
[1769343265411,0.0001778,88670.0,88656.0,1.10386271]
[1769343265608,0.0001778,88670.0,88657.0,0.36341738]
[1769343265786,0.0001778,88670.0,88656.0,1.10386271]
[1769343265992,0.0001778,88670.0,88641.0,0.00014226]
[1769343265993,0.0001778,88670.0,88651.0,1.46744323]
[1769343266499,0.39219029,88667.0,88651.0,0.36358052]
[1769343269772,0.39219029,88667.0,88641.0,0.00014226]
[1769343269773,0.0001778,88670.0,88652.0,1.12642283]
[1769343269988,0.0001778,88670.0,88656.0,1.10386271]
[1769343270164,0.0001778,88670.0,88656.0,1.10369961]
[1769343270594,0.0001778,88670.0,88658.0,1.10386271]
[1769343270798,0.0001778,88670.0,88642.0,0.01128133]
[1769343270939,0.0001778,88670.0,88645.0,0.36358052]
[1769343271134,0.0001778,88670.0,88649.0,1.10386271]
[1769343271338,0.0001778,88670.0,88653.0,0.36358052]
[1769343271566,0.0001778,88670.0,88657.0,1.46744323]
[1769343271965,0.0001778,88670.0,88658.0,0.02255859]
[1769343272165,0.1734,88674.0,88658.0,0.02255859]
[1769343272166,0.39219029,88678.0,88658.0,1.49000182]
[1769343272396,0.39219029,88678.0,88658.0,1.46744323]
[1769343272599,0.39219029,88678.0,88659.0,1.10386271]
[1769343272774,0.06289603,88679.0,88659.0,1.10386271]
[1769343272964,0.1307,88678.0,88661.0,1.5426404]
[1769343274062,0.14197675,88678.0,88661.0,1.5426404]
[1769343274272,0.1307,88678.0,88661.0,1.5426404]
[1769343274474,0.06289603,88679.0,88661.0,1.5426404]
[1769343275468,0.05161941,88679.0,88650.0,1.5426404]
[1769343275676,0.05161941,88679.0,88651.0,0.02256037]
[1769343275879,0.05161941,88679.0,88650.0,0.02256063]
[1769343275880,0.01127675,88678.0,88650.0,0.02256063]
[1769343276105,0.01127675,88678.0,88650.0,0.04668309]
[1769343276646,0.38596971,88679.0,88651.0,1.1412433]
[1769343276851,0.38596971,88679.0,88643.0,0.011459]
[1769343276852,0.38596971,88668.0,88643.0,0.0001778]
[1769343277049,0.38596971,88668.0,88643.0,0.01009752]
[1769343277050,0.05161941,88664.0,88643.0,0.01009752]
[1769343277182,0.03400158,88667.0,88641.0,0.00014226]
[1769343277183,0.7154257,88642.0,88641.0,0.00014226]
[1769343277394,0.68154068,88642.0,88641.0,0.01749249]
[1769343277592,0.64765566,88642.0,88641.0,0.01749249]
[1769343277816,0.61376961,88642.0,88641.0,0.01749249]
[1769343277996,0.57988356,88642.0,88641.0,0.01749249]
[1769343278198,0.54599751,88642.0,88641.0,1.56013289]
[1769343278397,0.51211146,88642.0,88641.0,0.01749249]
[1769343278619,0.47822541,88642.0,88641.0,0.01749249]
[1769343278823,0.44433936,88642.0,88636.0,1.5426404]
[1769343278982,0.44433936,88642.0,88639.0,0.4013971]
[1769343279182,0.44433936,88642.0,88641.0,1.5426404]
[1769343281083,0.38596971,88659.0,88635.0,0.17336]
[1769343281288,0.38611189,88659.0,88637.0,0.4013971]
[1769343281488,0.38611189,88659.0,88640.0,1.1412433]
[1769343281724,0.38611189,88659.0,88641.0,1.5426404]
[1769343282285,0.38611189,88659.0,88642.0,0.00051754]
[1769343283923,0.38611189,88659.0,88642.0,1.14176084]
[1769343284126,0.38611189,88659.0,88642.0,1.12874472]
[1769343285654,0.38611189,88659.0,88642.0,1.52997872]
[1769343286074,0.38611189,88659.0,88635.0,0.17336]
[1769343286405,0.38611189,88659.0,88640.0,1.1412433]
[1769343286406,0.00014218,88659.0,88640.0,1.1412433]
[1769343286558,0.00014218,88659.0,88643.0,0.4013971]
[1769343286772,0.00014218,88659.0,88639.0,1.1412433]
[1769343287116,0.00014218,88659.0,88643.0,1.1412433]
[1769343287263,0.00014218,88659.0,88646.0,1.1412433]
[1769343287461,0.00014218,88659.0,88648.0,1.5426404]
[1769343287708,0.00014218,88659.0,88649.0,0.00096493]
[1769343288034,0.00014218,88659.0,88637.0,0.01128197]
[1769343288035,0.00014218,88659.0,88650.0,1.5426404]
[1769343288230,0.00014218,88659.0,88651.0,0.00057607]
[1769343291385,0.00014218,88659.0,88640.0,1.5878004]
[1769343292483,0.10290884,88659.0,88640.0,1.5878004]
[1769343292729,0.13110676,88659.0,88640.0,0.4465571]
[1769343292913,0.10290884,88659.0,88641.0,1.5426404]
[1769343293111,0.10290884,88659.0,88640.0,0.04516]
[1769343293309,0.00014218,88659.0,88643.0,1.5426404]
[1769343293532,0.00014218,88659.0,88640.0,0.04516]
[1769343293737,0.00014218,88659.0,88642.0,0.4013971]
[1769343294046,0.00014218,88659.0,88644.0,1.5426404]
[1769343301406,0.00014218,88659.0,88646.0,0.4013971]
[1769343301583,0.00014218,88659.0,88647.0,0.19529449]
[1769343301784,0.10290884,88659.0,88647.0,0.19529449]
[1769343302009,0.10290884,88659.0,88647.0,0.17336]
[1769343302802,0.10276666,88657.0,88635.0,0.37408683]
[1769343303000,0.47872144,88654.0,88636.0,0.21852]
[1769343303405,0.47872144,88654.0,88636.0,1.72927674]
[1769343304116,0.47872144,88654.0,88636.0,1.35518991]
[1769343304317,0.47872144,88654.0,88637.0,0.37408683]
[1769343305329,0.47872144,88654.0,88637.0,1.51075674]
[1769343306611,0.27537212,88654.0,88637.0,1.51075674]
[1769343307222,0.27537212,88654.0,88638.0,0.37408683]
[1769343307638,0.27537212,88654.0,88639.0,0.17336]
[1769343309069,0.10276666,88653.0,88639.0,0.17336]
[1769343312197,0.10276666,88653.0,88639.0,0.54744683]
[1769343312963,0.02819824,88658.0,88640.0,0.37408683]
[1769343313167,0.02819824,88658.0,88642.0,0.37408683]
[1769343317116,0.09021721,88683.0,88642.0,0.10827149]
[1769343317292,0.3800496,88691.0,88643.0,0.01855575]
[1769343317293,0.37813756,88670.0,88643.0,0.01855575]
[1769343317443,0.0001707,88681.0,88643.0,0.17336]
[1769343317444,0.37813756,88667.0,88643.0,0.17336]
[1769343317648,0.10937016,88664.0,88643.0,0.17336]
[1769343317847,0.37813756,88662.0,88643.0,0.17336]
[1769343318051,0.12380158,88661.0,88643.0,0.17336]
[1769343318454,0.12380158,88661.0,88644.0,0.01742788]
[1769343318677,0.32081385,88662.0,88644.0,0.01742788]
[1769343318877,0.32190755,88662.0,88644.0,0.01742788]
[1769343319266,0.32190755,88662.0,88644.0,0.39501385]
[1769343319468,0.32190755,88662.0,88644.0,0.37758597]
[1769343319873,0.0001707,88671.0,88647.0,1.10806011]
[1769343319874,0.37813756,88670.0,88647.0,1.10806011]
[1769343320076,0.0010937,88669.0,88649.0,0.37758597]
[1769343320272,0.0010937,88669.0,88650.0,0.4001466]
[1769343320480,0.0010937,88669.0,88649.0,1.10806011]
[1769343320795,0.0010937,88669.0,88651.0,0.37758597]
[1769343320994,0.0010937,88669.0,88652.0,0.02256012]
[1769343323055,0.0001707,88671.0,88655.0,0.37758597]
[1769343323199,0.0001707,88671.0,88659.0,0.37758597]
[1769343323831,0.0001707,88671.0,88653.0,0.37758597]
[1769343324146,0.0001707,88671.0,88654.0,0.02255961]
[1769343324781,0.0001707,88671.0,88654.0,0.40014558]
[1769343325006,0.0001707,88671.0,88654.0,0.37758597]
[1769343325223,0.0001707,88671.0,88655.0,0.02255935]
[1769343326119,0.0001707,88671.0,88656.0,0.37758597]
[1769343326350,0.0001707,88671.0,88657.0,0.02255885]
[1769343327255,0.0001707,88671.0,88658.0,1.10806011]
[1769343327466,0.0001707,88671.0,88659.0,0.37758597]
[1769343328584,0.0001707,88671.0,88660.0,0.02255808]
[1769343331054,0.0001707,88671.0,88662.0,0.37758597]
[1769343331229,0.0001707,88671.0,88664.0,0.37758597]
[1769343332831,0.0001707,88671.0,88665.0,0.02060771]
[1769343334272,0.00843676,88681.0,88665.0,0.02060771]
[1769343334273,0.0001707,88681.0,88665.0,0.02060771]
[1769343334457,0.0001707,88681.0,88668.0,1.16028867]
[1769343334659,0.0001707,88681.0,88669.0,0.37493752]
[1769343337187,0.2446707,88691.0,88661.0,0.01127891]
[1769343337188,0.2446707,88691.0,88673.0,0.37493752]
[1769343337364,0.0003129,88691.0,88674.0,0.37493752]
[1769343338164,0.02987911,88691.0,88674.0,0.37493752]
[1769343339088,0.02970841,88691.0,88674.0,0.37493752]
[1769343339354,0.02979601,88691.0,88674.0,0.37493752]
[1769343339904,0.02979601,88691.0,88661.0,0.05655431]
[1769343339905,0.01,88674.0,88668.0,0.17332]
[1769343340523,0.02956621,88676.0,88668.0,0.17332]
[1769343341175,0.02956621,88676.0,88661.0,0.0001154]
[1769343341367,0.0670693,88699.0,88662.0,1e-08]
[1769343341368,0.0374569,88674.0,88662.0,1e-08]
[1769343341565,0.0374569,88673.0,88662.0,1e-08]
[1769343342859,0.01127611,88683.0,88661.0,0.0001154]
[1769343342860,0.0374569,88671.0,88661.0,0.0001154]
[1769343343012,0.0374569,88671.0,88641.0,0.01128146]
[1769343343013,0.38947891,88668.0,88636.0,0.045363]
[1769343343345,0.0374569,88663.0,88645.0,0.37493752]
[1769343344624,0.0374569,88663.0,88649.0,0.00034518]
[1769343345844,0.0676691,88667.0,88649.0,0.00034518]
[1769343345845,0.0374569,88661.0,88649.0,0.00034518]
[1769343346061,0.0374569,88660.0,88649.0,0.00034518]
[1769343346629,0.01127891,88661.0,88649.0,0.00034518]
[1769343346630,0.0374569,88657.0,88649.0,0.00034518]
[1769343346836,0.03711517,88655.0,88639.0,0.37493752]
[1769343347102,0.0372274,88655.0,88639.0,0.37493752]
[1769343349395,0.0372274,88655.0,88636.0,0.045363]
[1769343349396,0.03711517,88653.0,88636.0,0.045363]
[1769343349602,0.03711517,88651.0,88636.0,0.045363]
[1769343350023,0.00011223,88655.0,88636.0,0.045363]
[1769343350024,0.03711517,88649.0,88636.0,0.045363]
[1769343351198,0.38959114,88655.0,88636.0,0.045363]
[1769343351465,0.03711517,88654.0,88637.0,0.01962662]
[1769343352515,0.03711517,88654.0,88637.0,0.39456414]
[1769343352661,0.38959114,88655.0,88636.0,0.045363]
[1769343352662,0.00011223,88655.0,88639.0,0.37493752]
[1769343352868,0.00011223,88655.0,88642.0,1.16028867]
[1769343353152,0.00011223,88655.0,88645.0,0.37493752]
[1769343353327,0.00011223,88655.0,88646.0,0.3943702]
[1769343353501,0.00011223,88655.0,88646.0,0.37493752]
[1769343355703,0.00011223,88655.0,88647.0,0.01228474]
[1769343355906,0.00011223,88655.0,88647.0,0.0067189]
[1769343356130,0.00011223,88655.0,88646.0,0.37493752]
[1769343356493,0.00011223,88655.0,88647.0,0.35999516]
[1769343356702,0.00011223,88655.0,88647.0,0.3587083]
[1769343357098,0.00011223,88655.0,88636.0,0.11305544]
[1769343357099,0.00011223,88655.0,88646.0,0.01128082]
[1769343357298,0.00011223,88655.0,88648.0,1.16028867]
[1769343357507,0.00011223,88655.0,88651.0,0.37493752]
[1769343357725,0.00011223,88655.0,88654.0,1.52533842]
[1769343360373,0.02419234,88679.0,88647.0,0.01128069]
[1769343360374,0.04701517,88676.0,88647.0,1.16028867]
[1769343360595,0.000203,88679.0,88649.0,1.16028867]
[1769343360596,0.02819283,88675.0,88649.0,1.16028867]
[1769343360833,0.04701517,88673.0,88652.0,0.37493752]
[1769343361074,0.04701517,88673.0,88653.0,0.37493752]
[1769343361312,0.04701517,88673.0,88654.0,0.37493752]
[1769343361544,0.04479737,88672.0,88654.0,0.37493752]
[1769343362090,0.04479737,88672.0,88655.0,0.37493752]
[1769343362600,0.04479737,88672.0,88655.0,1.53522619]
[1769343365511,0.09181254,88672.0,88655.0,1.53522619]
[1769343365709,0.04479737,88672.0,88656.0,0.00112342]
[1769343365980,0.04701517,88670.0,88656.0,0.00112342]
[1769343366185,0.02819474,88669.0,88656.0,0.00112342]
[1769343367362,0.04701517,88671.0,88656.0,0.00112342]
[1769343368302,0.27729506,88674.0,88656.0,0.00112342]
[1769343368512,0.00047016,88673.0,88656.0,0.00112342]
[1769343368968,0.00047016,88673.0,88656.0,0.0225591]
[1769343369638,0.36687236,88673.0,88656.0,0.0225591]
[1769343369834,0.00047016,88672.0,88656.0,0.0225591]
[1769343371749,0.03440537,88672.0,88656.0,0.0225591]
[1769343378355,0.03393521,88672.0,88655.0,0.37022243]
[1769343378671,0.00047016,88677.0,88658.0,1.15092652]
[1769343378882,0.00047016,88677.0,88659.0,0.39278025]
[1769343379024,0.00047016,88677.0,88659.0,0.37022243]
[1769343380217,0.00047016,88677.0,88660.0,0.00027032]
[1769343381621,0.00047016,88677.0,88660.0,0.00283345]
[1769343384345,0.03578615,88677.0,88660.0,0.00283345]
[1769343384629,0.02819252,88676.0,88660.0,0.00283345]
[1769343384848,0.02866268,88676.0,88660.0,0.00283345]
[1769343387159,0.00047016,88676.0,88660.0,0.00283345]
[1769343387506,0.00047016,88676.0,88661.0,0.30041727]
[1769343387756,0.00047016,88676.0,88662.0,0.00283338]
[1769343387917,0.00047016,88676.0,88661.0,0.30041727]
[1769343388116,0.00047016,88676.0,88662.0,0.00133206]
[1769343388342,0.00047016,88676.0,88661.0,0.30041727]
[1769343390289,0.04127036,88675.0,88661.0,0.30041727]
[1769343391879,0.02819315,88674.0,88661.0,0.30041727]
[1769343392107,0.00047016,88677.0,88661.0,0.30041727]
[1769343392309,0.02866236,88677.0,88661.0,0.30041727]
[1769343393681,0.02866236,88677.0,88662.0,0.02255757]
[1769343394582,0.26747609,88680.0,88662.0,0.02255757]
[1769343394922,0.005014,88679.0,88662.0,0.02255757]
[1769343396350,0.005014,88679.0,88662.0,0.39872931]
[1769343396648,0.005014,88679.0,88662.0,0.37617174]
[1769343396827,0.02757132,88679.0,88663.0,0.3528057]
[1769343397030,0.02757132,88679.0,88664.0,0.00573355]
[1769343397214,0.02757132,88679.0,88663.0,0.22980317]
[1769343397419,0.02757132,88679.0,88663.0,0.11684181]
[1769343397615,0.02757132,88679.0,88663.0,0.06149331]
[1769343397817,0.02757132,88679.0,88663.0,0.00501263]
[1769343398022,0.26747609,88680.0,88663.0,0.00501263]
[1769343398023,0.26747609,88680.0,88663.0,1.15352508]
[1769343400117,0.04516,88687.0,88656.0,1.159792]
[1769343400320,0.04516,88687.0,88659.0,0.37617174]
[1769343400523,0.38073989,88686.0,88662.0,1.14851245]
[1769343400728,0.03573507,88685.0,88665.0,0.37617174]
[1769343400927,0.03573507,88685.0,88666.0,1.52468419]
[1769343403751,0.03573507,88685.0,88660.0,1.14851245]
[1769343403986,0.03573507,88685.0,88662.0,1.14851245]
[1769343404188,0.03573507,88685.0,88654.0,0.0112798]
[1769343404189,0.03573507,88685.0,88665.0,0.37617174]
[1769343404333,0.02818997,88684.0,88665.0,1.52468419]
[1769343405178,0.02818997,88684.0,88666.0,0.00112782]
[1769343405761,0.41647496,88683.0,88666.0,0.00112782]
[1769343408103,0.20057162,88683.0,88666.0,0.37729956]
[1769343408320,0.20057162,88683.0,88666.0,0.37617174]
[1769343408525,0.20057162,88683.0,88667.0,0.00106471]
[1769343409978,0.20057162,88683.0,88667.0,0.37723645]
[1769343410182,0.20057162,88683.0,88667.0,0.37617174]
[1769343411461,0.20057162,88683.0,88613.0,0.1428169]
[1769343411462,0.03573507,88683.0,88644.0,0.17336]
[1769343411678,0.0453304,88688.0,88653.0,0.37617174]
[1769343411679,0.38073989,88679.0,88653.0,0.37617174]
[1769343411893,0.02819188,88678.0,88656.0,1.14851245]
[1769343412099,0.02819188,88678.0,88659.0,0.37617174]
[1769343412312,0.02819188,88678.0,88661.0,0.37617174]
[1769343412532,0.04446668,88677.0,88661.0,0.37617174]
[1769343412751,0.02819252,88676.0,88661.0,0.37617174]
[1769343412991,0.02819252,88676.0,88662.0,0.37617174]
[1769343414992,0.02819252,88676.0,88663.0,1.14851245]
[1769343415202,0.02819252,88676.0,88663.0,1.52468419]
[1769343415583,0.02819283,88675.0,88663.0,1.52468419]
[1769343415825,0.02819188,88678.0,88663.0,1.52468419]
[1769343418701,0.03573507,88679.0,88663.0,1.14851245]
[1769343418898,0.03573507,88679.0,88664.0,0.3987288]
[1769343419098,0.00624517,88678.0,88664.0,0.37617174]
[1769343419296,0.00624517,88678.0,88665.0,0.02255681]
[1769343420562,0.29896377,88684.0,88665.0,0.02255681]
[1769343420563,0.29896377,88684.0,88666.0,0.37617174]
[1769343420765,0.29896377,88684.0,88667.0,0.39872804]
[1769343420919,0.29896377,88684.0,88667.0,0.37617174]
[1769343422015,0.29896377,88684.0,88665.0,1.14851245]
[1769343422016,0.29896377,88684.0,88668.0,0.39872779]
[1769343422253,0.29896377,88684.0,88668.0,0.37617174]
[1769343422464,0.29896377,88684.0,88669.0,0.02255579]
[1769343423249,0.33469884,88684.0,88669.0,0.02255579]
[1769343426006,0.03573507,88684.0,88669.0,0.02255579]
[1769343426308,0.03573507,88684.0,88669.0,0.39582958]
[1769343426486,0.0001704,88688.0,88671.0,0.39582958]
[1769343426881,0.0283591,88688.0,88671.0,0.39582958]
[1769343427106,0.03573507,88687.0,88671.0,0.39582958]
[1769343427438,0.03573507,88685.0,88671.0,0.39582958]
[1769343427575,0.02818997,88684.0,88671.0,0.39582958]
[1769343430202,0.0001704,88688.0,88673.0,0.33935498]
[1769343430396,0.0283591,88688.0,88673.0,0.16731925]
[1769343430600,0.0283591,88688.0,88672.0,1.15499579]
[1769343430817,0.37930949,88687.0,88659.0,0.39582958]
[1769343431038,0.03573507,88685.0,88661.0,0.39582958]
[1769343431235,0.04024299,88684.0,88664.0,1.15499579]
[1769343431436,0.04024299,88684.0,88665.0,1.55082537]
[1769343432050,0.02818997,88684.0,88665.0,1.55082537]
[1769343432295,0.41504456,88685.0,88666.0,1.55373601]
[1769343432599,0.02818997,88684.0,88666.0,1.55082537]
[1769343432802,0.02818997,88684.0,88667.0,0.00291061]
[1769343433113,0.43267022,88683.0,88666.0,1.55082537]
[1769343433294,0.43267022,88683.0,88651.0,0.39582958]
[1769343433295,0.37930949,88681.0,88651.0,0.39582958]
[1769343433447,0.02819124,88680.0,88654.0,1.15499579]
[1769343433645,0.02819124,88680.0,88657.0,1.15499579]
[1769343433881,0.02819124,88680.0,88649.0,0.01139267]
[1769343433882,0.02819124,88680.0,88661.0,0.39582958]
[1769343434152,0.02819124,88680.0,88663.0,1.14032662]
[1769343434355,0.02819124,88680.0,88663.0,1.5206849]
[1769343434553,0.02819124,88680.0,88664.0,1.14032662]
[1769343436672,0.07785089,88680.0,88664.0,1.14032662]
[1769343437898,0.07785089,88680.0,88664.0,1.5206849]
[1769343438931,0.07785089,88680.0,88653.0,0.01127993]
[1769343438932,0.02819124,88680.0,88655.0,0.38035828]
[1769343439129,0.02819124,88680.0,88657.0,0.38035828]
[1769343439292,0.02819124,88680.0,88659.0,0.38035828]
[1769343439523,0.02819124,88680.0,88662.0,1.14032662]
[1769343439721,0.02819124,88680.0,88664.0,1.5206849]
[1769343440140,0.02819124,88680.0,88665.0,1.14032662]
[1769343440539,0.42868167,88688.0,88667.0,1.14032662]
[1769343440742,0.40032257,88686.0,88667.0,1.14032662]
[1769343440966,0.02818966,88685.0,88667.0,1.14032662]
[1769343441840,0.02818997,88684.0,88667.0,1.14032662]
[1769343443998,0.28818107,88685.0,88667.0,1.14032662]
[1769343444159,0.00061021,88684.0,88667.0,1.5206849]
[1769343445721,0.00061021,88684.0,88668.0,0.02255605]
[1769343445901,0.40032257,88683.0,88660.0,1.14032662]
[1769343446100,0.00035736,88680.0,88660.0,1.5206849]
[1769343446279,0.00061021,88679.0,88661.0,1.5206849]
[1769343446486,0.00061021,88679.0,88650.0,0.01128031]
[1769343446814,0.00061021,88679.0,88654.0,0.38035828]
[1769343447027,0.00061021,88679.0,88656.0,0.38035828]
[1769343447229,0.00061021,88679.0,88659.0,1.14032662]
[1769343447427,0.00061021,88679.0,88662.0,0.38035828]
[1769343447665,0.00061021,88679.0,88662.0,1.5206849]
[1769343449862,0.00061021,88679.0,88663.0,0.38035828]
[1769343450039,0.00061021,88680.0,88665.0,0.38035828]
[1769343450243,0.00035736,88684.0,88665.0,0.38035828]
[1769343450409,0.00061021,88683.0,88665.0,0.38035828]
[1769343452211,0.04127359,88682.0,88665.0,0.38035828]
[1769343452414,0.00061021,88681.0,88665.0,0.38035828]
[1769343453033,0.00061021,88683.0,88665.0,0.38035828]
[1769343453585,0.00061021,88683.0,88653.0,0.01127993]
[1769343453586,0.0001704,88688.0,88667.0,0.40653794]
[1769343453830,0.0001704,88688.0,88670.0,1.05017216]
[1769343453831,0.00061021,88687.0,88670.0,1.05017216]
[1769343454038,0.00061021,88687.0,88673.0,0.40653794]
[1769343454215,0.00061021,88687.0,88674.0,0.02255451]
[1769343457224,0.00061021,88687.0,88670.0,0.42909348]
[1769343457411,0.00061021,88687.0,88670.0,1.4567101]
[1769343457612,0.00061021,88687.0,88671.0,0.40653794]
[1769343457834,0.00061021,88687.0,88672.0,0.02255503]
[1769343460531,0.000169,88687.0,88672.0,0.02255503]
[1769343460730,0.000169,88687.0,88672.0,0.40653794]
[1769343460910,0.000169,88687.0,88673.0,0.02255452]
[1769343462915,0.000169,88687.0,88673.0,1.05017216]
[1769343463126,0.000169,88687.0,88674.0,0.02255441]
[1769343469923,0.000149,88694.0,88674.0,0.02255441]
[1769343470123,0.000149,88694.0,88665.0,0.0112784]
[1769343470124,0.000149,88694.0,88675.0,0.02255427]
[1769343470350,0.000149,88694.0,88676.0,0.02255401]
[1769343470549,0.000149,88694.0,88676.0,0.40653794]
[1769343471521,0.00029123,88694.0,88676.0,0.40653794]
[1769343472382,0.00029123,88694.0,88677.0,0.02255376]
[1769343477228,0.00029123,88694.0,88678.0,0.40653794]
[1769343477443,0.00029123,88694.0,88679.0,0.02255325]
[1769343483155,0.00029123,88694.0,88679.0,0.42345445]
[1769343483372,0.00029123,88694.0,88679.0,0.4009012]
[1769343484542,0.00029123,88694.0,88680.0,0.02255299]
[1769343490883,0.00035736,88693.0,88680.0,0.0213677]
[1769343491107,0.00035736,88688.0,88668.0,1.47809651]
[1769343491264,0.00154265,88688.0,88669.0,0.4009012]